fUSD/lending_fUSD_20260318
["ID","MTS","AMOUNT","RATE_DAILY","PERIOD"]
[408540299,1773868241490,-731.0,0.00014633,2]
[408540300,1773868241500,-731.0,0.00014633,2]
[408540301,1773868241510,-731.0,0.00014633,2]
[408540302,1773868241519,-731.0,0.00014633,2]
[408540303,1773868241529,-731.0,0.00014633,2]
[408540304,1773868241538,-731.0,0.00014633,2]
[408540305,1773868241548,-731.0,0.00014633,2]
[408540306,1773868241558,-741.0,0.00014633,2]
[408540307,1773868241567,-1680.0,0.00014643,2]
[408540308,1773868241577,-901.1,0.00014656,2]
[408540309,1773868241586,-160.2,0.00014666,2]
[408540310,1773868241595,-168.0,0.00014684,2]
[408540311,1773868241605,-253.212593,0.00014695,7]
[408540312,1773868241614,-2895.56323513,0.00014699,2]
[408540313,1773868241624,-151.0,0.000147,2]
[408540314,1773868241633,-168.0,0.0001472,2]
[408540315,1773868241642,-643.4842653,0.00014737,2]
[408540316,1773868241656,-515.376182,0.00014748,2]
[408540317,1773868241667,-515.376182,0.00014748,2]
[408540318,1773868241676,-515.376182,0.00014748,2]
[408540319,1773868241686,-515.376182,0.00014748,2]
[408540320,1773868241697,-151.0,0.00014748,2]
[408540321,1773868241706,-354.423118,0.00014748,2]
[408540322,1773868241715,-354.423118,0.00014748,2]
[408540323,1773868241727,-354.423118,0.00014748,2]
[408540324,1773868241736,-354.423118,0.00014748,2]
[408540325,1773868241745,-151.0,0.00014748,2]
[408540326,1773868241755,-92737.32156731,0.00014748,2]
[408540327,1773868241764,-7364.43505888,0.00014768,2]
[408540328,1773868241773,-2000.0,0.00014777,2]
[408540329,1773868241782,-159.54092276,0.00014797,2]
[408540330,1773868241791,-500.0,0.00014798,2]
[408540331,1773868241801,-500.0,0.00014798,2]
[408540332,1773868241810,-282.90006286,0.00014799,2]
[408540333,1773868241819,-500.0,0.00014799,2]
[408540334,1773868241829,-500.00077669,0.00014799,2]
[408540335,1773868241838,-500.0,0.00014799,2]
[408540336,1773868241848,-500.0,0.00014799,2]
[408540337,1773868241858,-500.0,0.00014799,2]
[408540338,1773868241867,-500.0,0.00014799,2]
[408540339,1773868241876,-500.0,0.00014799,2]
[408540340,1773868241885,-500.0,0.00014799,2]
[408540341,1773868241894,-500.0,0.00014799,2]
[408540342,1773868241903,-500.0,0.00014799,2]
[408540343,1773868241912,-500.0,0.00014799,2]
[408540344,1773868241922,-164.50003126,0.00014799,2]
[408540345,1773868241931,-500.0,0.00014799,2]
[408540346,1773868241941,-503.55073109,0.00014799,2]
[408540347,1773868241950,-200.0,0.00014799,2]
[408540348,1773868241959,-200.0,0.00014799,2]
[408540349,1773868241969,-502.6227765,0.00014799,2]
[408540350,1773868241978,-702.85968898,0.00014882,2]
[408540351,1773868241987,-420.0,0.00014903,2]
[408540352,1773868241997,-1177.53400092,0.00014916,2]
[408540353,1773868242006,-166.66,0.00014916,2]
[408540354,1773868242015,-391.641584,0.00014917,7]
[408540355,1773868242025,-424.842317,0.00014917,7]
[408540356,1773868242035,-205.907417,0.00014917,7]
[408540357,1773868242044,-205.0,0.00014922,2]
[408540358,1773868242054,-2895.56323512,0.00014939,2]
[408540359,1773868242063,-205.0,0.00014942,2]
[408540360,1773868242073,-165.98,0.00014946,2]
[408540361,1773868242083,-451.10107922,0.0001495,2]
[408540362,1773868242093,-348.993206,0.00014979,7]
[408540363,1773868242103,-255.0,0.00014991,2]
[408540364,1773868242113,-7364.43505888,0.00014995,2]
[408540365,1773868242122,-500.0,0.00014999,2]
[408540366,1773868242132,-250.0,0.00015,2]
[408540367,1773868242142,-643.4842653,0.00015027,2]
[408540368,1773868242151,-205.0,0.00015046,2]
[408540369,1773868242161,-695.97,0.00015068,2]
[408540370,1773868242171,-197.66378783,0.00015168,2]
[408540371,1773868242180,-200.58610052,0.00015168,2]
[408540372,1773868242190,-500.0,0.00015168,2]
[408540373,1773868242200,-151.0,0.00015168,2]
[408540374,1773868242209,-181.08010149,0.00015168,2]
[408540375,1773868242220,-2895.56323512,0.00015179,2]
[408540376,1773868242230,-168.0,0.00015197,2]
[408540377,1773868242239,-5834.00397899,0.00015217,2]
[408540378,1773868242248,-422.91193653,0.00015217,2]
[408540379,1773868242258,-7364.43505888,0.00015221,2]
[408540380,1773868242267,-500.0,0.00015223,2]
[408540381,1773868242276,-151.0,0.00015223,2]
[408540382,1773868242286,-500.0,0.00015278,2]
[408540383,1773868242296,-151.0,0.00015278,2]
[408540384,1773868242305,-350.0,0.00015293,2]
[408540385,1773868242315,-205.0,0.00015313,2]
[408540386,1773868242324,-643.4842653,0.00015318,2]
[408540387,1773868242334,-500.0,0.00015333,2]
[408540388,1773868242343,-151.0,0.00015333,2]
[408540389,1773868242353,-447.46,0.00015363,2]
[408540390,1773868242362,-168.0,0.00015364,2]
[408540391,1773868242372,-500.0,0.00015388,2]
[408540392,1773868242381,-151.0,0.00015388,2]
[408540393,1773868242391,-7700.0,0.000154,5]
[408540394,1773868242400,-2000.0,0.000154,2]
[408540395,1773868242410,-2895.56323512,0.0001542,2]
[408540396,1773868242419,-151.0,0.00015443,2]
[408540397,1773868242428,-7364.43505888,0.00015447,2]
[408540398,1773868242438,-1700.0,0.00015452,2]
[408540399,1773868242447,-700.0,0.00015452,2]
[408540400,1773868242457,-350.0,0.00015458,2]
[408540401,1773868242467,-3757.0,0.00015496,2]
[408540402,1773868242476,-6005.0,0.00015496,2]
[408540403,1773868242485,-151.0,0.00015498,2]
[408540404,1773868242496,-1500.0,0.000155,5]
[408540405,1773868242505,-3281.0,0.000155,2]
[408540406,1773868242515,-168.0,0.00015522,2]
[408540407,1773868242524,-181.02,0.00015526,2]
[408540408,1773868242534,-154.10725797,0.00015532,2]
[408540409,1773868242544,-151.0,0.00015553,2]
[408540410,1773868242555,-151.0,0.00015581,2]
[408540411,1773868242565,-1500.0,0.000156,5]
[408540412,1773868242575,-643.4842653,0.00015609,2]
[408540413,1773868242585,-2895.56323512,0.0001566,2]
[408540414,1773868242595,-168.0,0.00015662,2]
[408540415,1773868242605,-7364.43505888,0.00015674,2]
[408540416,1773868242615,-2278.6231793,0.0001568,2]
[408540417,1773868242625,-1236.04,0.00015681,2]
[408540418,1773868242635,-159.1,0.00015683,2]
[408540419,1773868242645,-296.03589012,0.00015684,2]
[408540420,1773868242659,-500.0,0.00015684,2]
[408540421,1773868242674,-256.17008248,0.00015684,2]
[408540422,1773868242684,-500.0,0.00015684,2]
[408540424,1773868242695,-500.0,0.00015684,2]
[408540426,1773868242705,-500.0,0.00015684,2]
[408540428,1773868242715,-1500.0,0.000157,5]
[408540431,1773868242726,-4107.0,0.00015723,2]
[408540433,1773868242736,-1100.0,0.00015726,2]
[408540435,1773868242747,-168.0,0.0001575,2]
[408540437,1773868242757,-2602.2215,0.0001575,2]
[408540439,1773868242767,-695.97,0.00015753,2]
[408540440,1773868242777,-1115.08858112,0.00015778,2]
[408540441,1773868242787,-1058.93233401,0.00015778,2]
[408540442,1773868242797,-1016.68348305,0.00015778,2]
[408540443,1773868242807,-1117.7371134,0.00015778,2]
[408540444,1773868242817,-1003.69195411,0.00015778,2]
[408540445,1773868242827,-1066.3710938,0.00015778,2]
[408540446,1773868242837,-1035.17734058,0.00015778,2]
[408540447,1773868242847,-1013.0517085,0.00015778,2]
[408540448,1773868242857,-1116.50219651,0.00015778,2]
[408540449,1773868242867,-1140.80121783,0.00015778,2]
[408540450,1773868242877,-1047.612299,0.00015778,2]
[408540451,1773868242887,-1017.44784788,0.00015778,2]
[408540452,1773868242897,-1015.52690886,0.00015778,2]
[408540453,1773868242908,-1093.36661075,0.00015778,2]
[408540454,1773868242918,-1067.34853923,0.00015778,2]
[408540455,1773868242928,-1083.48969038,0.00015778,2]
[408540456,1773868242938,-1062.03902288,0.00015778,2]
[408540457,1773868242948,-1169.53675128,0.00015778,2]
[408540458,1773868242958,-1500.0,0.000158,5]
[408540459,1773868242968,-200.0,0.000158,2]
[408540460,1773868242978,-350.0,0.00015801,2]
[408540461,1773868242989,-350.0,0.00015809,2]
[408540462,1773868242999,-979.16666667,0.00015817,2]
[408540463,1773868243009,-183.29437577,0.00015823,2]
[408540464,1773868243019,-447.4698746,0.00015836,2]
[408540465,1773868243029,-400.21031602,0.00015839,2]
[408540466,1773868243039,-500.0,0.00015839,2]
[408540467,1773868243049,-541.61606,0.0001584,2]
[408540468,1773868243059,-541.61606,0.0001584,2]
[408540469,1773868243068,-541.61606,0.0001584,2]
[408540470,1773868243079,-150.0,0.00015844,2]
[408540471,1773868243089,-169.29953085,0.00015845,2]
[408540472,1773868243098,-150.0,0.00015847,2]
[408540473,1773868243108,-1000.0,0.00015847,2]
[408540474,1773868243117,-1730.0,0.00015867,5]
[408540476,1773868243127,-2249.0,0.00015867,5]
[408540477,1773868243136,-500.0,0.00015868,2]
[408540478,1773868243146,-200.0,0.00015872,2]
[408540479,1773868243155,-150.0,0.00015874,2]
[408540480,1773868243165,-160.2,0.00015876,2]
[408540481,1773868243174,-1000.0,0.00015883,2]
[408540483,1773868243184,-2283.671,0.00015885,2]
[408540484,1773868243194,-1044.0,0.00015885,2]
[408540485,1773868243203,-1344.0,0.00015885,2]
[408540486,1773868243213,-1260.0,0.00015885,2]
[408540487,1773868243222,-1215.0,0.00015885,2]
[408540488,1773868243231,-927.389,0.00015885,2]
[408540489,1773868243241,-20435.1973122,0.00015888,2]
[408540490,1773868243251,-23434.6935597,0.00015888,2]
[408540491,1773868243260,-1815.3496947,0.00015888,2]
[408540492,1773868243270,-163.0,0.0001589,2]
[408540493,1773868243279,-250.0,0.0001589,2]
[408540494,1773868243289,-2079.0328404,0.00015897,2]
[408540495,1773868243298,-864.8124284,0.000159,2]
[408540496,1773868243307,-7364.43505888,0.000159,2]
[408540497,1773868243317,-1938.0,0.000159,5]
[408540498,1773868243326,-2000.0,0.000159,2]
[408540499,1773868243335,-5834.00397899,0.000159,2]
[408540500,1773868243344,-422.91193653,0.000159,2]
[408540501,1773868243354,-3508.1881505,0.000159,2]
[408540502,1773868243363,-2895.56323512,0.000159,2]
[408540503,1773868243373,-451.10107922,0.000159,2]
[408540504,1773868243382,-643.4842653,0.000159,2]
[408540505,1773868243391,-150.0,0.00015903,2]
[408540506,1773868243401,-150.0,0.00015917,2]
[408540507,1773868243411,-150.0,0.00015918,2]
[408540508,1773868243420,-150.0,0.00015924,2]
[408540509,1773868243429,-150.0,0.00015939,2]
[408540510,1773868243439,-150.0,0.00015943,2]
[408540511,1773868243448,-1894.6031859,0.00015956,2]
[408540513,1773868243458,-303.14374679,0.00015973,2]
[408540514,1773868243468,-161.50794753,0.00015973,2]
[408540515,1773868243477,-164.62600278,0.00015973,2]
[408540516,1773868243487,-500.0,0.00015973,2]
[408540517,1773868243495,-500.0,0.00015973,2]
[408540518,1773868243505,-500.0,0.00015973,2]
[408540519,1773868243514,-500.0,0.00015973,2]
[408540520,1773868243524,-210.44909634,0.00015973,2]
[408540521,1773868243533,-500.38785834,0.00015973,2]
[408540522,1773868243543,-500.0,0.00015973,2]
[408540523,1773868243553,-500.0,0.00015973,2]
[408540524,1773868243563,-164.40138988,0.00015973,2]
[408540525,1773868243573,-500.0,0.00015973,2]
[408540526,1773868243582,-500.20355798,0.00015973,2]
[408540527,1773868243592,-500.0,0.00015973,2]
[408540528,1773868243601,-500.0,0.00015973,2]
[408540529,1773868243610,-500.0,0.00015973,2]
[408540530,1773868243620,-500.0,0.00015973,2]
[408540531,1773868243630,-502.73508484,0.00015973,2]
[408540532,1773868243639,-382.43871643,0.00015973,2]
[408540533,1773868243649,-500.0,0.00015973,2]
[408540534,1773868243661,-500.0,0.00015973,2]
[408540535,1773868243670,-336.94661194,0.00015973,2]
[408540536,1773868243679,-500.0,0.00015973,2]
[408540537,1773868243688,-500.0,0.00015973,2]
[408540538,1773868243698,-163.19287474,0.00015973,2]
[408540539,1773868243707,-500.0,0.00015973,2]
[408540540,1773868243717,-500.0,0.00015973,2]
[408540541,1773868243727,-500.0,0.00015973,2]
[408540542,1773868243736,-500.0,0.00015973,2]
[408540543,1773868243746,-500.0,0.00015973,2]
[408540544,1773868243961,-160.12298016,0.00015973,2]
[408540545,1773868243975,-161.75571014,0.00015973,2]
[408540546,1773868243984,-500.0,0.00015973,2]
[408540547,1773868243994,-500.0,0.00015973,2]
[408540548,1773868244004,-500.0,0.00015973,2]
[408540549,1773868244014,-500.0,0.00015973,2]
[408540550,1773868244024,-160.048,0.00015973,2]
[408540551,1773868244034,-500.0,0.00015973,2]
[408540552,1773868244044,-187.47382393,0.00015973,2]
[408540553,1773868244053,-500.0,0.00015973,2]
[408540554,1773868244063,-500.0,0.00015973,2]
[408540555,1773868244073,-500.0,0.00015973,2]
[408540556,1773868244082,-500.0,0.00015973,2]
[408540557,1773868244092,-517.7204554,0.00015973,2]
[408540558,1773868244102,-159.10669946,0.00015973,2]
[408540559,1773868244111,-163.39305656,0.00015973,2]
[408540560,1773868244122,-517.4992797,0.00015973,2]
[408540561,1773868244131,-500.0,0.00015973,2]
[408540562,1773868244140,-500.0,0.00015973,2]
[408540563,1773868244150,-191.09594132,0.00015973,2]
[408540564,1773868244160,-500.0,0.00015973,2]
[408540565,1773868244169,-514.55725178,0.00015973,2]
[408540566,1773868244179,-500.0,0.00015973,2]
[408540567,1773868244188,-500.0,0.00015973,2]
[408540568,1773868244198,-500.0,0.00015973,2]
[408540569,1773868244208,-500.0,0.00015973,2]
[408540570,1773868244218,-500.0,0.00015973,2]
[408540571,1773868244228,-500.0,0.00015973,2]
[408540572,1773868244237,-500.0,0.00015973,2]
[408540573,1773868244246,-500.0,0.00015973,2]
[408540574,1773868244256,-401.96832496,0.00015973,2]
[408540575,1773868244265,-526.34198136,0.00015973,2]
[408540576,1773868244275,-177.88795057,0.00015973,2]
[408540577,1773868244284,-500.0,0.00015973,2]
[408540578,1773868244293,-380.30178366,0.00015973,2]
[408540579,1773868244302,-500.0,0.00015973,2]
[408540580,1773868244311,-166.41691617,0.00015973,2]
[408540581,1773868244321,-500.42157714,0.00015973,2]
[408540582,1773868244330,-500.0,0.00015973,2]
[408540583,1773868244340,-489.56124248,0.00015973,2]
[408540584,1773868244351,-168.31736846,0.00015973,2]
[408540585,1773868244360,-500.0,0.00015973,2]
[408540586,1773868244370,-210.47030904,0.00015973,2]
[408540587,1773868244379,-500.0,0.00015973,2]
[408540588,1773868244389,-162.69740995,0.00015973,2]
[408540589,1773868244398,-500.0,0.00015973,2]
[408540590,1773868244407,-163.96638651,0.00015973,2]
[408540591,1773868244416,-500.0,0.00015973,2]
[408540592,1773868244425,-500.0,0.00015973,2]
[408540593,1773868244434,-150.0,0.00015984,2]
[408540594,1773868244444,-515.376182,0.00015985,2]
[408540595,1773868244454,-515.376182,0.00015985,2]
[408540596,1773868244463,-515.376182,0.00015985,2]
[408540597,1773868244472,-515.376182,0.00015985,2]
[408540598,1773868244481,-151.0,0.00015985,2]
[408540599,1773868244491,-354.423118,0.00015985,2]
[408540600,1773868244500,-354.423118,0.00015985,2]
[408540601,1773868244509,-354.423118,0.00015985,2]
[408540602,1773868244519,-354.423118,0.00015985,2]
[408540603,1773868244529,-162.251722,0.00015985,2]
[408540604,1773868244538,-1520.0,0.00015985,2]
[408540605,1773868244547,-1520.0,0.00015985,2]
[408540606,1773868244556,-1520.0,0.00015985,2]
[408540607,1773868244566,-1520.0,0.00015985,2]
[408540608,1773868244575,-1309.54716045,0.00015985,2]
[408540609,1773868244584,-152.72588312,0.00015985,2]
[408540610,1773868244594,-151.0,0.00015985,2]
[408540611,1773868244603,-1520.0,0.00015985,2]
[408540612,1773868244612,-151.0,0.00015985,2]
[408540613,1773868244621,-1520.0,0.00015985,2]
[408540614,1773868244630,-151.0,0.00015985,2]
[408540615,1773868244640,-1520.0,0.00015985,2]
[408540616,1773868244650,-160.0,0.00015985,2]
[408540617,1773868244661,-151.0,0.00015985,2]
[408540618,1773868244671,-1520.0,0.00015985,2]
[408540619,1773868244680,-160.0,0.00015985,2]
[408540620,1773868244690,-151.0,0.00015985,2]
[408540621,1773868244699,-1520.0,0.00015985,2]
[408540622,1773868244708,-151.0,0.00015985,2]
[408540623,1773868244717,-1520.0,0.00015985,2]
[408540624,1773868244729,-160.0,0.00015985,2]
[408540625,1773868244738,-151.0,0.00015985,2]
[408540626,1773868244748,-1520.0,0.00015985,2]
[408540627,1773868244758,-300.26939844,0.00015985,2]
[408540628,1773868244768,-160.0,0.00015985,2]
[408540629,1773868244777,-151.0,0.00015985,2]
[408540630,1773868244786,-1520.0,0.00015985,2]
[408540631,1773868244795,-161.08997555,0.00015985,2]
[408540632,1773868244804,-154.38251739,0.00015985,2]
[408540633,1773868244814,-1520.0,0.00015985,2]
[408540634,1773868244824,-1520.0,0.00015985,2]
[408540635,1773868244834,-1520.0,0.00015985,2]
[408540636,1773868244844,-1520.0,0.00015985,2]
[408540637,1773868244853,-1520.0,0.00015985,2]
[408540638,1773868244862,-1520.0,0.00015985,2]
[408540639,1773868244872,-153.0,0.00015985,2]
[408540640,1773868244881,-1520.0,0.00015985,2]
[408540641,1773868244890,-153.0,0.00015985,2]
[408540642,1773868244900,-1520.0,0.00015985,2]
[408540643,1773868244909,-151.17008218,0.00015985,2]
[408540644,1773868244918,-1520.0,0.00015985,2]
[408540645,1773868244928,-1520.0,0.00015985,2]
[408540646,1773868244937,-1520.0,0.00015985,2]
[408540647,1773868244946,-1379.0,0.00015989,5]
[408540648,1773868244955,-628.07952177,0.0001599,2]
[408540649,1773868244964,-745.04680978,0.0001599,2]
[408540650,1773868244973,-745.04680978,0.0001599,2]
[408540651,1773868244983,-500.0,0.00015999,2]
[408540652,1773868244992,-500.0,0.00015999,2]
[408540653,1773868245002,-500.0,0.00015999,2]
[408540654,1773868245011,-500.0,0.00015999,2]
[408540655,1773868245021,-500.0,0.00015999,2]
[408540656,1773868245030,-500.0,0.00015999,2]
[408540657,1773868245040,-500.0,0.00015999,2]
[408540658,1773868245049,-591.08999128,0.00015999,2]
[408540659,1773868245059,-13723.64861363,0.00015999,7]
[408540660,1773868245068,-31738.20384014,0.00015999,7]
[408540661,1773868245078,-1456389.091905,0.00016,2]
[408540662,1773868245122,-414.0,0.00015496,2]
[408540663,1773868245131,-49594.5938931,0.00016,2]
[408540664,1773868245162,-46986.60889608,0.00016,2]
[408540665,1773868245427,-422.07772594,0.00016,2]
[408540666,1773868245439,-722.8955016,0.00016,2]
[408540667,1773868245469,-11364.44298887,0.00016,2]
[408540668,1773868245779,-480.77618612,0.00016,2]
[408540669,1773868245798,-4891.05,0.00016,2]
[408540670,1773868245809,-1261.267356,0.00016,2]
[408540671,1773868246093,-781.1935832,0.000159,2]
[408540672,1773868246104,-562.80964515,0.000159,2]
[408540675,1773868346767,186.0,0.0003013,120]
[408540679,1773868571468,500.0,0.0003013,120]
[408540680,1773868640484,150.0,0.000161,120]
[408540681,1773868644914,1800.0,0.00030137,120]
[408540682,1773868645381,1800.0,0.00030137,120]
[408540683,1773868645875,1800.0,0.00030137,120]
[408540684,1773868646130,1800.0,0.00030137,120]
[408540685,1773868646611,1800.0,0.00030137,120]
[408540686,1773868647078,1800.0,0.00030137,120]
[408540687,1773868647556,1800.0,0.00030137,120]
[408540688,1773868649925,1800.0,0.00030137,120]
[408540689,1773868650403,1800.0,0.00030137,120]
[408540690,1773868650658,1800.0,0.00030137,120]
[408540691,1773868651306,1800.0,0.00030137,120]
[408540692,1773868651358,766.0,0.0003013,120]
[408540693,1773868652018,381.0,0.0003013,120]
[408540694,1773868652055,1800.0,0.00030137,120]
[408540695,1773868652577,1800.0,0.00030137,120]
[408540696,1773868652847,1800.0,0.00030137,120]
[408540697,1773868653353,1291.0,0.00030137,120]
[408540698,1773868654048,412.0,0.0003013,120]
[408540699,1773868654833,245.71330358,0.0003013,120]
[408540701,1773868686583,1800.0,0.00030137,120]
[408540702,1773868687063,1800.0,0.00030137,120]
[408540703,1773868692468,1800.0,0.00030137,120]
[408540704,1773868692955,1800.0,0.00030137,120]
[408540705,1773868693210,1800.0,0.00030137,120]
[408540706,1773868693461,1800.0,0.00030137,120]
[408540707,1773868693709,1800.0,0.00030137,120]
[408540708,1773868694325,1800.0,0.00030137,120]
[408540709,1773868694647,1800.0,0.00030137,120]
[408540710,1773868695304,1800.0,0.00030137,120]
[408540711,1773868695338,1800.0,0.00030137,120]
[408540712,1773868695527,1800.0,0.00030137,120]
[408540713,1773868695797,1800.0,0.00030137,120]
[408540714,1773868696062,1800.0,0.00030137,120]
[408540715,1773868696333,1800.0,0.00030137,120]
[408540716,1773868696607,1800.0,0.00030137,120]
[408540717,1773868696885,1800.0,0.00030137,120]
[408540718,1773868697161,1800.0,0.00030137,120]
[408540719,1773868697431,1800.0,0.00030137,120]
[408540720,1773868697706,1800.0,0.00030137,120]
[408540721,1773868697976,1800.0,0.00030137,120]
[408540722,1773868698248,1800.0,0.00030137,120]
[408540723,1773868698521,1800.0,0.00030137,120]
[408540724,1773868698808,1800.0,0.00030137,120]
[408540725,1773868699062,1800.0,0.00030137,120]
[408540726,1773868699354,1800.0,0.00030137,120]
[408540727,1773868699621,1800.0,0.00030137,120]
[408540728,1773868699875,1800.0,0.00030137,120]
[408540729,1773868700638,1800.0,0.00030137,120]
[408540730,1773868700960,1800.0,0.00030137,120]
[408540731,1773868701280,1800.0,0.00030137,120]
[408540732,1773868708467,484.0,0.0003013,120]
[408540733,1773868714542,150.0,0.00021522,120]
[408540734,1773868714910,150.0,0.00022836,120]
[408540735,1773868715268,150.0,0.0002415,120]
[408540736,1773868715662,150.0,0.00025463,120]
[408540737,1773868716026,150.0,0.00026777,120]
[408540738,1773868716901,162.44,0.0002809,120]
[408540739,1773868716940,189.51,0.00029404,120]
[408540740,1773868746684,256.21,0.00021522,120]
[408540741,1773868747044,512.41,0.00022836,120]
[408540742,1773868747403,768.62,0.00024149,120]
[408540743,1773868747436,166.28201359,0.00029404,120]
[408540744,1773868747793,1024.83,0.00025463,120]
[408540745,1773868748158,1281.03,0.00026776,120]
[408540746,1773868748533,1537.24,0.0002809,120]
[408540747,1773868749137,1793.45,0.00029404,120]
[408540748,1773868772268,1264.0,0.0003013,120]
[408540749,1773868773032,1494.0,0.0003013,120]
[408540750,1773868773807,1434.0,0.0003013,120]
[408540751,1773868774638,1456.0,0.0003013,120]
[408540752,1773868775422,941.0,0.0003013,120]
[408540753,1773868776207,1222.0,0.0003013,120]
[408540754,1773868776994,636.0,0.0003013,120]
[408540755,1773868777685,273.22484241,0.0003013,120]
[408540756,1773868777777,552.0,0.0003013,120]
[408540757,1773868778551,1189.0,0.0003013,120]
[408540758,1773868779339,199.0,0.0003013,120]
[408540759,1773868780117,1809.0,0.0003013,120]
[408540760,1773868780895,1574.0,0.0003013,120]
[408540762,1773868788630,470.0,0.0003013,120]
[408540763,1773868789420,451.0,0.0003013,120]
[408540765,1773868790219,238.0,0.0003013,120]
[408540767,1773868791043,298.0,0.0003013,120]
[408540768,1773868791839,455.0,0.0003013,120]
[408540770,1773868792681,168.0,0.0003013,120]
[408540771,1773868793490,405.0,0.0003013,120]
[408540772,1773868794547,431.0,0.0003013,120]
[408540774,1773868800698,250.82179239,0.00018034,120]
[408540781,1773868808341,361.71,0.00021517,120]
[408540782,1773868808738,723.43,0.0002283,120]
[408540783,1773868809084,1085.14,0.00024143,120]
[408540784,1773868809446,1446.85,0.00025456,120]
[408540785,1773868809822,1808.57,0.00026769,120]
[408540786,1773868810184,2170.28,0.00028083,120]
[408540787,1773868810542,2531.99,0.00029396,120]
[408540788,1773868827137,2250.46681,0.00030137,120]
[408540789,1773868827181,150.0,0.00030137,120]
[408540790,1773868828340,923.8,0.000161,120]
[408540792,1773868830570,1444.0,0.00029041,120]
[408540793,1773868833233,860.0,0.0003013,120]
[408540794,1773868834027,1373.0,0.0003013,120]
[408540795,1773868834984,1682.0,0.0003013,120]
[408540796,1773868835780,666.0,0.0003013,120]
[408540797,1773868836557,1571.0,0.0003013,120]
[408540798,1773868842147,447.0,0.0003013,120]
[408540799,1773868842946,302.65761906,0.0003013,120]
[408540800,1773868863164,306.47,0.00021513,120]
[408540801,1773868863533,612.94,0.00022826,120]
[408540802,1773868863909,919.41,0.00024139,120]
[408540803,1773868864280,1225.88,0.00025452,120]
[408540804,1773868865116,1532.35,0.00026765,120]
[408540805,1773868865507,1838.82,0.00028078,120]
[408540806,1773868865861,2145.29,0.00029391,120]
[408540807,1773868892214,453.0,0.0003013,120]
[408540808,1773868892992,267.0,0.0003013,120]
[408540809,1773868924417,259.66,0.00021518,120]
[408540810,1773868924766,519.33,0.00022832,120]
[408540811,1773868925627,778.99,0.00024145,120]
[408540812,1773868926055,1038.65,0.00025458,120]
[408540813,1773868926410,1298.32,0.00026772,120]
[408540814,1773868926762,1557.98,0.00028085,120]
[408540815,1773868927105,1817.65,0.00029398,120]
[408540816,1773868946163,287.0,0.0003013,120]
[408540817,1773868946924,1194.0,0.0003013,120]
[408540818,1773868981888,220.01,0.00021516,120]
[408540819,1773868982246,440.01,0.00022829,120]
[408540820,1773868982602,660.02,0.00024142,120]
[408540821,1773868982955,880.02,0.00025455,120]
[408540822,1773868983674,1100.03,0.00026768,120]
[408540823,1773868983732,1320.04,0.00028081,120]
[408540824,1773868984054,1540.04,0.00029394,120]
[408540825,1773868995172,500.0,0.00030136,120]
[408540826,1773869006712,496.0,0.0003013,120]
[408540827,1773869019879,831.42,0.000161,120]
[408540828,1773869045544,186.41,0.00021551,120]